Cogmind - Beta 13 @@@ ROGUE MODE // 2024.04.05 @ 12:52:16 Player: Mantreise Result: Destroyed by G-34 Mercenary with Small Laser Performance ------------- Evolutions (1) 500 Regions Visited (2) 400 Robots Destroyed (25) 125 Value Destroyed (688) 688 Prototype IDs (0) 0 Alien Tech Used (0) 0 Bonus (0) 0 TOTAL SCORE: 1713 Bonus ------- None Cogmind --------- Core Integrity 0/400 Matter 300/300 Energy 250/250 System Corruption 0% Temperature Cool (6) Movement Core (150) Ox2 Location -9/Materials Parts ------- > --- POWER (1) -------- Ion Engine > --- PROPULSION (4) --- (None) > --- UTILITY (2) ------ Disposable Heat Sink Signal Interpreter > --- WEAPON (2) ------- Maul > --- INVENTORY (5) ---- Aluminum Leg Peak State ------------ > --- POWER ------------ Ion Engine > --- PROPULSION ------- Hover Unit Hover Unit > --- UTILITY ---------- Disposable Heat Sink Signal Interpreter > --- WEAPON ----------- Beam Cannon Maul > --- INVENTORY -------- Ion Engine [Rating: 9] Favorites ----------- Power Ion Engine Engine Ion Engine Propulsion Wheel Leg Aluminum Leg Wheel Wheel Hover Unit Hover Unit Utility Signal Interpreter Device Disposable Heat Sink Storage Small Storage Unit Processor Signal Interpreter Weapon Beam Cannon Energy Gun Small Laser Energy Cannon Beam Cannon Impact Weapon Maul Build | -11 -10 -9 ------- Run | Yrd Mat Mat Slots Evolved 2 | . . 2 Power . | . . . Propulsion 2 | . . 2 Utility . | . . . Weapon . | . . . Parts Attached 19 | 6 6 7 Power 3 | 1 1 1 Engine 3 | 1 1 1 Core . | . . . Reactor . | . . . Propulsion 5 | 2 . 3 Treads . | . . . Leg 1 | . . 1 Wheel 2 | 2 . . Hover 2 | . . 2 Flight . | . . . Utility 5 | 1 3 1 Device 1 | . . 1 Storage 1 | 1 . . Processor 3 | . 3 . Hackware . | . . . Protection . | . . . Artifact . | . . . Weapon 6 | 2 2 2 Energy Gun 3 | 2 . 1 Energy Cannon 2 | . 2 . Ballistic Gun . | . . . Ballistic Cannon . | . . . Launcher . | . . . Special Weapon . | . . . Impact Weapon 1 | . . 1 Slashing Weapon . | . . . Piercing Weapon . | . . . Special Melee Weapon . | . . . Unidentified Prototypes . | . . . Parts Lost 10 | . 1 9 Power 2 | . 1 1 Propulsion 5 | . . 5 Utility . | . . . Weapon 3 | . . 3 Highest Loss Streak 3 | . 1 3 To Critical Strikes . | . . . Average Slot Usage (%) 70 | . 94 56 Engine 10 | . 13 8 Wheel 11 | . 28 . Hover 4 | . . 7 Device 4 | . . 7 Storage 1 | . 4 . Processor 16 | . 18 14 Energy Gun 5 | . 10 1 Energy Cannon 10 | . 17 6 Impact Weapon 4 | . . 7 Naked Turns . | . . . Heaviest Build 12 | 10 11 12 Greatest Support 20 | 20 20 20 Greatest Overweight (x) 3 | 3 . 3 Average Overweight (x) . | . . . Largest Inventory Capacity 8 | 8 8 5 Average Capacity 5 | 7 5 5 Most Carried 5 | 3 5 3 Average Carried 1 | 1 1 1 Final Capacity 8 | 8 5 5 Final Carried 1 | 1 1 1 Class Distribution -------------------- 100% | Mutant Dominant Class ---------------- Mutant | -10/Materials Mutant | -9/Materials Resources | -11 -10 -9 ----------- Run | Yrd Mat Mat Matter Collected 431 | 213 158 60 Remotely . | . . . Salvage Created 795 | . 271 524 Parts 24 | . 11 13 Haulers Intercepted 3 | . 2 1 Recyclers Shooed . | . . . Parts Field Recycled . | . . . Retrieved Matter . | . . . Parts Self-Destructed . | . . . Prevented . | . . . Kills | -11 -10 -9 ------- Run | Yrd Mat Mat Combat Hostiles Destroyed 19 | . 4 15 Melee 9 | . . 9 Guns 2 | . 1 1 Cannons 3 | . 2 1 Classes Destroyed 7 | . 3 4 Builder 1 | . 1 . Hauler 3 | . 2 1 Operator 1 | . . 1 Watcher 1 | . . 1 Swarmer 3 | . . 3 Grunt 14 | . 4 10 Sentry 2 | . . 2 Best Kill Streak 6 | . 3 6 Combat Bots Only 5 | . 2 5 Max Kills in Single Turn 1 | . 1 1 Gunslinging . | . . . Exploded . | . . . Melee 1 | . . 1 Uniques/NPCs Destroyed . | . . . Combat | -11 -10 -9 -------- Run | Yrd Mat Mat Hostile Shots Fired 142 | . 44 98 Missed 34 | . 12 22 Damage Taken 1362 | . 447 915 Core 581 | . 181 400 Absorbed by Shields . | . . . Core Remaining (%) 63 | 100 27 . Volleys Fired 45 | . 28 17 Largest 2 | . 2 2 Hottest 120 | . 120 120 Shots Fired 75 | . 56 19 Gun 28 | . 20 8 Cannon 47 | . 36 11 Launcher . | . . . Special . | . . . Kinetic . | . . . Thermal 75 | . 56 19 Explosive . | . . . Electromagnetic . | . . . Robot Hit Streak 11 | . 11 7 Robot Miss Streak 5 | . 4 5 Penetration Max . | . . . Secondary Targets . | . . . Shots Hit Robots 83 | . 32 51 Core Hits 28 | . 10 18 Critical Kills 2 | . . 2 Critical Parts Destroyed 8 | . . 8 Critical Strikes 10 | . . 10 Meltdown 1 | . . 1 Smash 9 | . . 9 Melee Attacks 45 | . . 45 Impact 45 | . . 45 Slashing . | . . . Piercing . | . . . Sneak Attacks 1 | . . 1 Combat Hostiles . | . . . Follow-up Attacks . | . . . Damage Inflicted 2033 | . 500 1533 Guns 276 | . 164 112 Cannons 512 | . 336 176 Explosions . | . . . Melee 1245 | . . 1245 Ramming . | . . . Kinetic . | . . . Thermal 788 | . 500 288 Explosive . | . . . Electromagnetic . | . . . Impact 1245 | . . 1245 Slashing . | . . . Piercing . | . . . Highest Corruption . | . . . Average Corruption . | . . . Corruption Purged . | . . . Corruption Blocked . | . . . Overload Shots . | . . . Overflow Damage 395 | . 3 392 Projectiles 3 | . 3 . Explosions . | . . . Melee 392 | . . 392 Knockbacks 6 | . . 6 Impact 4 | . . 4 Kinetic . | . . . Secondary 2 | . . 2 Self-Inflicted Damage . | . . . Shots . | . . . Rammed . | . . . Targets Rammed . | . . . Kicked . | . . . Crushed . | . . . Highest Temperature 427 | . 427 203 Average Temperature 167 | . 193 97 Received Heat Transfer 720 | . 258 462 Effects 6 | . 6 . Interference 3 | . 3 . Matter Decay 1 | . 1 . Short Circuit 1 | . 1 . Damage (minor) 1 | . 1 . Siege Activations . | . . . Robots Corrupted . | . . . Combat Hostiles . | . . . Parts Fried 9 | . . 9 Impact Corruptions 14 | . . 14 Robots Melted 2 | . 1 1 Combat Hostiles 1 | . 1 . Parts Melted 5 | . 2 3 Heat Transferred 1583 | . 1078 505 Parts Sabotaged . | . . . Parts Stolen . | . . . Parts Stripped . | . . . Power Chain Reactions . | . . . Alert | -11 -10 -9 ------- Run | Yrd Mat Mat Peak Influence 371 | . 111 371 Initial 46 | . . 46 Average 130 | . 44 197 Maximum Alert Level 1 | . . 1 Low Security (%) 71 | 100 100 50 Level 1 28 | . . 49 Level 2 . | . . . Level 3 . | . . . Level 4 . | . . . Level 5 . | . . . High Security . | . . . Max Security . | . . . Squads Dispatched 5 | . 1 4 Investigation 3 | . 1 2 Extermination . | . . . Reinforcement 2 | . . 2 Assault . | . . . Garrison . | . . . Intercept . | . . . Searches Triggered . | . . . Construction Impeded . | . . . Haulers Reinforced . | . . . Active Scanning Responses . | . . . Cargo Convoy Interrupts . | . . . Stealth | -11 -10 -9 --------- Run | Yrd Mat Mat Distress Signals 1 | . . 1 Communications Jammed . | . . . Distress Signals . | . . . Times Spotted 28 | . 6 22 Peak Tracking Total 6 | . 3 6 Tactical Retreats 2 | . . 2 Traps | -11 -10 -9 ------- Run | Yrd Mat Mat Traps Triggered 3 | . 1 2 Indirectly . | . . . Trap Hack Attempts . | . . . Triggered . | . . . Disarmed . | . . . Reprogrammed 6 | . 6 . Reused . | . . . Traps Extracted . | . . . Installed . | . . . Triggered . | . . . Machines | -11 -10 -9 ---------- Run | Yrd Mat Mat Machines Disabled 1 | . . 1 Max in Single Turn 1 | . . 1 Machines Repaired . | . . . Machines Dismantled . | . . . Machines Sabotaged . | . . . Overloaded Fab Kills . | . . . Hacking | -11 -10 -9 --------- Run | Yrd Mat Mat Machines Accessed 4 | . 3 1 Terminals 3 | . 2 1 Fabricators . | . . . Repair Stations . | . . . Recycling Units 1 | . 1 . Scanalyzers . | . . . Garrison Access . | . . . Total Hacks 11 | . 8 3 Successful 5 | . 5 . Failed 6 | . 3 3 Catastrophic 1 | . 1 . Database Lockouts . | . . . Manual 9 | . 7 2 Terminals 10 | . 7 3 Fabricators . | . . . Repair Stations . | . . . Recycling Units 1 | . 1 . Scanalyzers . | . . . Garrison Access . | . . . Terminal Hacks 2 | . 2 . Reprogram Traps 1 | . 1 . Maintenance Status 1 | . 1 . Fabricator Hacks . | . . . Repair Station Hacks . | . . . Recycling Unit Hacks . | . . . Scanalyzer . | . . . Garrison Access Hacks . | . . . Unauthorized Hacks 3 | . 3 . Terminals 2 | . 2 . Botnet 2 | . 2 . Fabricators . | . . . Repair Stations . | . . . Recycling Units 1 | . 1 . Reject 1 | . 1 . Scanalyzers . | . . . Garrison Access . | . . . Data Cores Recovered . | . . . Used . | . . . Hacking Detections 2 | . 1 1 Full Trace Events . | . . . Feedback Events . | . . . Feedback Blocked . | . . . Robot Schematics Acquired . | . . . Robots Built . | . . . Authchips . | . . . Time . | . . . Total Robot Build Rating . | . . . Part Schematics Acquired . | . . . Parts Built . | . . . Authchips . | . . . Time . | . . . Total Part Build Rating . | . . . Parts Repaired . | . . . Time . | . . . Parts Recycled . | . . . Recycled Matter . | . . . Retrieved Matter . | . . . Retrieved Components . | . . . Parts Scanalyzed . | . . . Part Schematics Acquired . | . . . Parts Damaged . | . . . Bothacking | -11 -10 -9 ------------ Run | Yrd Mat Mat Used RIF Installer . | . . . Robots Hacked . | . . . Non-combat . | . . . Combat . | . . . Robot Hacks Applied . | . . . Relay Couplers Released . | . . . Fabnet Peak Effective % . | . . . Robots Rewired . | . . . Allies Hacked . | . . . Hacks Repelled . | . . . Allies | -11 -10 -9 -------- Run | Yrd Mat Mat Total Allies . | . . . Largest Group . | . . . Highest-Rated Group . | . . . Highest-Rated Ally . | . . . Total Orders . | . . . Ally Attacks . | . . . Total Damage . | . . . Kills . | . . . Allies Corrupted . | . . . Allies Melted . | . . . Intel | -11 -10 -9 ------- Run | Yrd Mat Mat Robot Analysis Total . | . . . Derelict Logs Recovered . | . . . Drone Launches . | . . . Drone Recoveries . | . . . Exploration | -11 -10 -9 ------------- Run | Yrd Mat Mat Turns Passed 838 | 57 293 488 Spaces Moved 598 | 46 212 340 Core 108 | 23 . 85 Treads . | . . . Legs 14 | . . 14 Wheels 255 | 23 212 20 Hover 221 | . . 221 Flight . | . . . Fastest Speed 50 | 50 80 56 Average Speed 84 | 95 80 85 Slowest Speed 200 | 200 80 200 Overloaded Moves . | . . . Propulsion Burnouts . | . . . Robots Hopped . | . . . Cave-ins Triggered . | . . . Exploration Rate (%) 16 | 4 27 19 Regions Visited 2 Branch Regions . Pre-discovered Areas . | . . . Known Exits Taken 1 | . 1 . Unknown Exits Taken 1 | 1 . . Scrap Searched . | . . . Spaces Dug 1 | . . 1 Terrain Destroyed 1 | . . 1 Melee 1 | . . 1 Projectile . | . . . AOE . | . . . Terrain Rammed . | . . . Walls Destroyed . | . . . Machines Disabled . | . . . Actions | -11 -10 -9 --------- Run | Yrd Mat Mat Total 766 | 58 279 429 Wait 36 | . 25 11 Move 596 | 45 211 340 Hop . | . . . Pick Up 21 | 7 6 8 Fast Attach . | . . . Attach 15 | 6 3 6 Detach . | . . . Swap 4 | . 3 1 Drop 4 | . 3 1 Fire 45 | . 28 17 Melee 45 | . . 45 Ram . | . . . Kick . | . . . Crush . | . . . Escape Stasis . | . . . Rewire . | . . . Trap . | . . . Miscellaneous . | . . . Route ------- -11/Scrapyard -10/Materials (discovered 2 exits: *Mat / [*Min]) -9/Materials History --------- Turn | Location | Event 2 | -11/Scrapyard | Met Revision 17 18 | -11/Scrapyard | Discovered new exit (range 15) 58 | -11/Scrapyard | Entered Materials 85 | -10/Materials | Discovered new exit (range 16) 235 | -10/Materials | Discovered new exit (range 5) 239 | -10/Materials | Identified exit to Materials 290 | -10/Materials | Core integrity fell below 50% 308 | -10/Materials | Build established: Mutant 351 | -10/Materials | Entered another Materials area 351 | -9/Materials | Evolved 2 slots: Propulsion x2 406 | -9/Materials | Lost 3 parts (2n1w) 714 | -9/Materials | Core integrity fell below 50% 739 | -9/Materials | Core integrity fell below 20% 839 | -9/Materials | Destroyed by G-34 Mercenary with Small Laser Last Messages --------------- Lgt. Ion Engine fried. S-10 Pest destroyed. Acquired 10 matter. G-34 Mercenary suffers critical hit (Smash). Destroyed Heat Sink. G-34 Mercenary system corrupted by crushing effect. G-34 Mercenary destroyed. S-10 Pest destroyed. R-06 Scavenger collects Lgt. Ion Engine. ALERT: Hostiles spotted, dispatching reinforcements to Terminal M010. Acquired Aluminum Leg. G-34 Mercenary suffers critical hit (Smash). Destroyed Sml. Laser. G-34 Mercenary system corrupted by crushing effect. K-01 Serf collects debris. G-34 Mercenary suffers critical hit (Smash). Destroyed Aluminum Leg. G-34 Mercenary system corrupted by crushing effect. G-34 Mercenary destroyed. K-01 Serf collects debris. Map ----- +----------------------------------------------------+ | ?????????????????????????????????????????????????? | | ?????????????????????????????????????????????????? | | ?????????????????????????????????????????????????? | | ?????????????????????????????????????????????????? | | ?????????????????????????????????????????????????? | | ?????????????????????????????????????????????????? | | ?????????????????????????????????????????????????? | | ?????????????????????????????????????????????????? | | ?????????????????????????????????????????????????? | | ?????????????????????????????????????????????????? | | ?????????????????????????????????????????????????? | | ?????????????????????????????????????????????????? | | ?????????????????????????????????????????????????? | | ?????????????????????????????????????????????????? | | ?????????????????????????????????????????????????? | | ?????????????????????????????????????????????????? | | ?????????????????????????????????????????????????? | | ?????????????????????????????????????????????????? | | ?????????????????????????????????????????????????? | | ?????????????????????????????????????????????????? | | ?????????????????????????????????????????????????? | | ?????????????????????????????????????????????????? | | ?????????????????????????????????????????????????? | | ???????????????????????##+#######????????????????? | | ???????????????????????# #????????????????? | | ???????????????????????# @ #????????????????? | | ???????????????????????# #????????????????? | | ???????????????????????# #????????????????? | | ???????????????????????# #????????????????? | | ???????????????????????# #????????????????? | | ???????????????????????# l #????????????????? | | ???????????????????????# #????????????????? | | ???????????????????????# gk #????????????????? | | ????????????????############/###########+##??????? | | ????????????????# # ?????? | | ###########?????# ! # ?????? | | # #?????# %#%% ?????? | | # #?????# """"%+% ###+#########??????? | | # """ """ #?????# """" # #??????????????????? | | # """ """ #?????# """" # #??????????????????? | | # """ """ #?????# # #??????????????????? | | # #?????# ! # #??????????????????? | | # #?????########### #??????????????????? | | # #????????# [# % #??????????????????? | | #####+#####????????# """%+% ##########?????????? | | ??# ###########?# """[# # ! #?????????? | | ??# ### """%# # "" #?????????? | | ??# + """=# # "T #?????????? | | ??# ######## ### %%# # "" #?????????? | | ??## ##??????# #?###+#### # % #?????????? | +----------------------------------------------------+ Best States ------------- Heat Dissipation 28 Coolant Potential 50 Energy Generation 10 Energy Capacity 250 Matter Stores 300 Matter Capacity 300 Sight Range 16 Terrain Scan Density 10 Evasion (%) 53 Targeting Accuracy 10 Item Schematics ----------------- None Robot Schematics ------------------ None Fabricated ------------ Nothing Alien Tech Used ----------------- None Achievements -------------- None Challenges ------------ None Game ------ Seed FusionControlNullifier Manual? 0 Play Time 00:14:41 Cumulative 12.5 hours Start 2024.04.05 @ 12:37:49 End 2024.04.05 @ 12:52:16 Sessions 1 Manual Loads 0 Difficulty Rogue Special Mode None Game No. 17 Rogue 15 Adventurer 2 Explorer 0 Win Type - Total 0 Types 0/0/0/0/0/0/0/0/0 Lore% 9 Gallery% 20 Achievement% 21 Wizard Run 0 Options --------- Layout 0 ASCII 0 Keyboard 0 Movement Mouse Keybinds 0 Fullscreen 1 Font 18/Smallcaps Map View 38x25 Zoom Use 99% Tactical HUD 0 Map Filters NONE Filters NONE Steam 1 RUN: 1ae42671-c316-4644-b01d-6348ec69cf9b